Cogmind - Beta 13 *** ADVENTURER MODE // 2024.04.04 @ 22:11:23 Player: ActualDio Result: Destroyed by G-34 Mercenary with Small Laser Performance ------------- Evolutions (0) 0 Regions Visited (2) 400 Robots Destroyed (28) 140 Value Destroyed (736) 736 Prototype IDs (0) 0 Alien Tech Used (0) 0 Bonus (0) 0 TOTAL SCORE: 1276 Bonus ------- None Cogmind --------- Core Integrity 0/250 Matter 293/300 Energy 100/100 System Corruption 0% Temperature Cool (6) Movement Rolling (90) Location -10/Mines Parts ------- > --- POWER (1) -------- (None) > --- PROPULSION (2) --- Wheel Compact Wheel > --- UTILITY (2) ------ Medium Storage Unit Signal Interpreter > --- WEAPON (2) ------- Light Assault Rifle > --- INVENTORY (10) --- Ion Engine Light Nuclear Core Small Storage Unit Small Laser Light Assault Rifle Rocket Launcher Mining Laser Peak State ------------ > --- POWER ------------ Light Nuclear Core > --- PROPULSION ------- Wheel Compact Wheel > --- UTILITY ---------- Small Storage Unit Signal Interpreter > --- WEAPON ----------- Light Assault Rifle Light Assault Rifle > --- INVENTORY -------- Mining Laser [Rating: 9] Favorites ----------- Power Light Nuclear Core Engine Light Ion Engine Power Core Light Nuclear Core Propulsion Compact Wheel Wheel Compact Wheel Utility Signal Interpreter Storage Small Storage Unit Processor Signal Interpreter Weapon Light Assault Rifle Ballistic Gun Light Assault Rifle Build | -11 -10 -10 ------- Run | Yrd Mat Min Slots Evolved . | . . . Power . | . . . Propulsion . | . . . Utility . | . . . Weapon . | . . . Parts Attached 18 | 6 9 3 Power 4 | 1 2 1 Engine 3 | 1 1 1 Core 1 | . 1 . Reactor . | . . . Propulsion 5 | 2 2 1 Treads . | . . . Leg . | . . . Wheel 5 | 2 2 1 Hover . | . . . Flight . | . . . Utility 4 | 1 2 1 Device . | . . . Storage 2 | 1 . 1 Processor 2 | . 2 . Hackware . | . . . Protection . | . . . Artifact . | . . . Weapon 5 | 2 3 . Energy Gun . | . . . Energy Cannon . | . . . Ballistic Gun 5 | 2 3 . Ballistic Cannon . | . . . Launcher . | . . . Special Weapon . | . . . Impact Weapon . | . . . Slashing Weapon . | . . . Piercing Weapon . | . . . Special Melee Weapon . | . . . Unidentified Prototypes . | . . . Parts Lost 8 | . 6 2 Power 3 | . 2 1 Propulsion 2 | . 2 . Utility . | . . . Weapon 3 | . 2 1 Highest Loss Streak 3 | . 3 2 To Critical Strikes . | . . . Average Slot Usage (%) 96 | . 96 97 Engine 7 | . 11 2 Core 6 | . 2 10 Wheel 26 | . 25 26 Storage 14 | . 14 14 Processor 13 | . 13 14 Ballistic Gun 27 | . 27 28 Naked Turns . | . . . Heaviest Build 17 | 10 12 17 Greatest Support 26 | 26 26 26 Greatest Overweight (x) 2 | 2 . 1 Average Overweight (x) . | . . . Largest Inventory Capacity 10 | 8 8 10 Average Capacity 8 | 7 8 9 Most Carried 7 | 6 6 7 Average Carried 4 | 2 3 6 Final Capacity 10 | 8 8 10 Final Carried 7 | 1 4 7 Class Distribution -------------------- 100% | Mutant Dominant Class ---------------- Mutant | -10/Materials Mutant | -10/Mines Resources | -11 -10 -10 ----------- Run | Yrd Mat Min Matter Collected 555 | 147 324 84 Remotely . | . . . Salvage Created 857 | . 669 188 Parts 60 | . 46 14 Haulers Intercepted . | . . . Recyclers Shooed . | . . . Parts Field Recycled . | . . . Retrieved Matter . | . . . Parts Self-Destructed . | . . . Prevented . | . . . Kills | -11 -10 -10 ------- Run | Yrd Mat Min Combat Hostiles Destroyed 24 | . 17 7 Guns 24 | . 17 7 Classes Destroyed 5 | . 5 . Worker 1 | . 1 . Builder 1 | . 1 . Watcher 2 | . 2 . Swarmer 6 | . 3 3 Grunt 18 | . 14 4 Best Kill Streak 7 | . 7 3 Combat Bots Only 6 | . 6 3 Max Kills in Single Turn 1 | . 1 1 Gunslinging . | . . . Exploded . | . . . Melee . | . . . Uniques/NPCs Destroyed . | . . . Combat | -11 -10 -10 -------- Run | Yrd Mat Min Hostile Shots Fired 178 | . 130 48 Missed 54 | . 41 13 Damage Taken 1023 | . 762 261 Core 256 | . 177 79 Absorbed by Shields . | . . . Ignored by Resistances 325 | . 242 83 Regen/Repaired (Parts) 59 | . 59 . Core Remaining (%) 100 | 100 . . Volleys Fired 116 | . 81 35 Largest 2 | . 2 2 Hottest 40 | . 40 40 Shots Fired 214 | . 146 68 Gun 214 | . 146 68 Cannon . | . . . Launcher . | . . . Special . | . . . Kinetic 214 | . 146 68 Thermal . | . . . Explosive . | . . . Electromagnetic . | . . . Robot Hit Streak 23 | . 23 10 Robot Miss Streak 3 | . 3 2 Penetration Max . | . . . Secondary Targets 5 | . 4 1 Max Gunslinging Chain 1 | . 1 1 Shots Hit Robots 170 | . 119 51 Core Hits 67 | . 48 19 Critical Kills 1 | . 1 . Critical Parts Destroyed 2 | . 1 1 Critical Strikes 3 | . 2 1 Destroy 3 | . 2 1 Melee Attacks . | . . . Impact . | . . . Slashing . | . . . Piercing . | . . . Sneak Attacks . | . . . Combat Hostiles . | . . . Follow-up Attacks . | . . . Damage Inflicted 1428 | . 1010 418 Guns 1428 | . 1010 418 Cannons . | . . . Explosions . | . . . Melee . | . . . Ramming . | . . . Kinetic 1428 | . 1010 418 Thermal . | . . . Explosive . | . . . Electromagnetic . | . . . Impact . | . . . Slashing . | . . . Piercing . | . . . Highest Corruption . | . . . Average Corruption . | . . . Corruption Purged . | . . . Corruption Blocked . | . . . Overload Shots . | . . . Overflow Damage . | . . . Projectiles . | . . . Explosions . | . . . Melee . | . . . Knockbacks . | . . . Impact . | . . . Kinetic . | . . . Secondary . | . . . Self-Inflicted Damage . | . . . Shots . | . . . Rammed . | . . . Targets Rammed . | . . . Kicked . | . . . Crushed . | . . . Highest Temperature 39 | . 39 12 Average Temperature 11 | . 13 5 Received Heat Transfer 660 | . 516 144 Siege Activations . | . . . Robots Corrupted . | . . . Combat Hostiles . | . . . Parts Fried . | . . . Impact Corruptions . | . . . Robots Melted . | . . . Combat Hostiles . | . . . Parts Melted . | . . . Heat Transferred . | . . . Parts Sabotaged . | . . . Parts Stolen . | . . . Parts Stripped . | . . . Power Chain Reactions . | . . . Alert | -11 -10 -10 ------- Run | Yrd Mat Min Peak Influence 256 | . 256 108 Initial 23 | . . 23 Average 77 | . 109 49 Maximum Alert Level 1 | . 1 . Low Security (%) 98 | 100 96 100 Level 1 1 | . 3 . Level 2 . | . . . Level 3 . | . . . Level 4 . | . . . Level 5 . | . . . High Security . | . . . Max Security . | . . . Squads Dispatched 4 | . 4 . Investigation 4 | . 4 . Extermination . | . . . Reinforcement . | . . . Assault . | . . . Garrison . | . . . Intercept . | . . . Searches Triggered . | . . . Construction Impeded . | . . . Haulers Reinforced . | . . . Active Scanning Responses . | . . . Cargo Convoy Interrupts . | . . . Stealth | -11 -10 -10 --------- Run | Yrd Mat Min Distress Signals 1 | . 1 . Communications Jammed . | . . . Distress Signals . | . . . Times Spotted 31 | . 21 10 Peak Tracking Total 5 | . 5 3 Tactical Retreats . | . . . Traps | -11 -10 -10 ------- Run | Yrd Mat Min Traps Triggered 2 | . 2 . Indirectly . | . . . Trap Hack Attempts . | . . . Triggered . | . . . Disarmed . | . . . Reprogrammed . | . . . Reused . | . . . Traps Extracted . | . . . Installed . | . . . Triggered . | . . . Machines | -11 -10 -10 ---------- Run | Yrd Mat Min Machines Disabled . | . . . Max in Single Turn . | . . . Machines Repaired . | . . . Machines Dismantled . | . . . Machines Sabotaged . | . . . Overloaded Fab Kills . | . . . Hacking | -11 -10 -10 --------- Run | Yrd Mat Min Machines Accessed 11 | . 11 . Terminals 8 | . 8 . Fabricators . | . . . Repair Stations 1 | . 1 . Recycling Units 2 | . 2 . Scanalyzers . | . . . Garrison Access . | . . . Total Hacks 31 | . 31 . Successful 21 | . 21 . Failed 10 | . 10 . Catastrophic . | . . . Database Lockouts . | . . . Manual 29 | . 29 . Terminals 26 | . 26 . Fabricators . | . . . Repair Stations 2 | . 2 . Recycling Units 3 | . 3 . Scanalyzers . | . . . Garrison Access . | . . . Terminal Hacks 1 | . 1 . Terminal Index 1 | . 1 . Fabricator Hacks . | . . . Repair Station Hacks 2 | . 2 . Scan Component 1 | . 1 . Repair 1 | . 1 . Recycling Unit Hacks 3 | . 3 . Report Inventory 2 | . 2 . Retrieve Components 1 | . 1 . Scanalyzer . | . . . Garrison Access Hacks . | . . . Unauthorized Hacks 15 | . 15 . Terminals 15 | . 15 . Track 6 | . 6 . Assimilate 1 | . 1 . Botnet 8 | . 8 . Fabricators . | . . . Repair Stations . | . . . Recycling Units . | . . . Scanalyzers . | . . . Garrison Access . | . . . Data Cores Recovered . | . . . Used . | . . . Hacking Detections 10 | . 10 . Full Trace Events 4 | . 4 . Feedback Events . | . . . Feedback Blocked . | . . . Robot Schematics Acquired . | . . . Robots Built . | . . . Authchips . | . . . Time . | . . . Total Robot Build Rating . | . . . Part Schematics Acquired . | . . . Parts Built . | . . . Authchips . | . . . Time . | . . . Total Part Build Rating . | . . . Parts Repaired 1 | . 1 . Time 26 | . 26 . Parts Recycled . | . . . Recycled Matter . | . . . Retrieved Matter . | . . . Retrieved Components 9 | . 9 . Parts Scanalyzed . | . . . Part Schematics Acquired . | . . . Parts Damaged . | . . . Bothacking | -11 -10 -10 ------------ Run | Yrd Mat Min Used RIF Installer . | . . . Robots Hacked . | . . . Non-combat . | . . . Combat . | . . . Robot Hacks Applied . | . . . Relay Couplers Released . | . . . Fabnet Peak Effective % . | . . . Robots Rewired . | . . . Allies Hacked . | . . . Hacks Repelled . | . . . Allies | -11 -10 -10 -------- Run | Yrd Mat Min Total Allies . | . . . Largest Group . | . . . Highest-Rated Group . | . . . Highest-Rated Ally . | . . . Total Orders . | . . . Ally Attacks . | . . . Total Damage . | . . . Kills . | . . . Allies Corrupted . | . . . Allies Melted . | . . . Intel | -11 -10 -10 ------- Run | Yrd Mat Min Robot Analysis Total . | . . . Derelict Logs Recovered . | . . . Drone Launches . | . . . Drone Recoveries . | . . . Exploration | -11 -10 -10 ------------- Run | Yrd Mat Min Turns Passed 1808 | 49 901 858 Spaces Moved 982 | 37 720 225 Core 23 | 23 . . Treads . | . . . Legs . | . . . Wheels 959 | 14 720 225 Hover . | . . . Flight . | . . . Fastest Speed 50 | 50 90 90 Average Speed 92 | 90 91 94 Slowest Speed 150 | 150 100 115 Overloaded Moves . | . . . Propulsion Burnouts . | . . . Robots Hopped . | . . . Cave-ins Triggered . | . . . Exploration Rate (%) 44 | 4 94 35 Regions Visited 2 Branch Regions 1 Pre-discovered Areas 1 | . . 1 Known Exits Taken 1 | . 1 . Unknown Exits Taken 1 | 1 . . Scrap Searched 1 | . . 1 Spaces Dug . | . . . Terrain Destroyed . | . . . Melee . | . . . Projectile . | . . . AOE . | . . . Terrain Rammed . | . . . Walls Destroyed . | . . . Machines Disabled . | . . . Actions | -11 -10 -10 --------- Run | Yrd Mat Min Total 1712 | 52 846 814 Wait 573 | . 26 547 Move 981 | 37 719 225 Hop . | . . . Pick Up 23 | 8 11 4 Fast Attach . | . . . Attach 14 | 6 7 1 Detach . | . . . Swap 4 | . 2 2 Drop 1 | 1 . . Fire 116 | . 81 35 Melee . | . . . Ram . | . . . Kick . | . . . Crush . | . . . Escape Stasis . | . . . Rewire . | . . . Trap . | . . . Miscellaneous . | . . . Route ------- -11/Scrapyard -10/Materials (discovered 4 exits: *Mat x3 / *Min) -10/Mines History --------- Turn | Location | Event 27 | -11/Scrapyard | Discovered new exit (range 15) 50 | -11/Scrapyard | Entered Materials 253 | -10/Materials | Discovered new exit (range 8) 288 | -10/Materials | Repaired Lgt. Assault Rifle 301 | -10/Materials | Discovered new exit (range 18) 316 | -10/Materials | Build established: Mutant 447 | -10/Materials | Discovered new exit (range 3) 448 | -10/Materials | Identified exit to Materials 583 | -10/Materials | Discovered exit to Materials (range 13) 799 | -10/Materials | Core integrity fell below 50% 838 | -10/Materials | Lost 3 parts (1p1n1w) 950 | -10/Materials | Identified exit to Mines 951 | -10/Materials | Entered Mines 952 | -10/Mines | Learned location of Storage (-7) 982 | -10/Mines | Received a Rocket Launcher from a helpful Derelict 1055 | -10/Mines | Core integrity fell below 20% 1102 | -10/Mines | Excavation squad dispatched 1102 | -10/Mines | A large section of the Mines collapsed 1352 | -10/Mines | Excavation squad dispatched 1602 | -10/Mines | Excavation squad dispatched 1809 | -10/Mines | Destroyed by G-34 Mercenary with Small Laser Last Messages --------------- G-34 Mercenary destroyed. U-05 Engineer lays Concrete. Acquired 10 matter. T-07 Excavator is excavating. U-05 Engineer lays Concrete. T-07 Excavator is excavating. U-05 Engineer lays Concrete. T-07 Excavator is excavating. U-05 Engineer lays Concrete. R-06 Scavenger collects Ion Engine. T-07 Excavator is excavating. R-06 Scavenger collects Heat Sink. G-34 Mercenary destroyed. T-07 Excavator is excavating. Acquired 14 matter. T-07 Excavator is excavating. Ion Engine destroyed. G-34 Mercenary suffers critical hit (Destroy). Destroyed Sml. Laser. Lgt. Assault Rifle destroyed. Map ----- +----------------------------------------------------+ | ##### #???####???????? | | #??????????????? | | #######??????????????? | | ## #????????????????????? | | ?## ##????????????????????? | | ### ##?????????????????????? | | ##?????????????????????? | | ###???????????????????? | | ###########?????????? | | ! #????????? | | ! # #????????? | | ! ## ########## #????????? | | ### ##?????????? ?????????? | | ###?## #?#########? #????????? | | #???# ##?# #? ????????? | | #???# #### #? #???????? | | ##???# * * #?# #???????? | | #????# #### """ #?# #???###?? | | ?????# #### """ #?###?## ##? | | ?????# *%# """ #?# #?# #? | | ?????# !# #?#;### ;#? | | ?????#### #########?# ## #? | | ????????# #???????### t #?? | | ????????# ###????## !%=! #??? | | ????????# ###### %=%gt ##??? | | ??????### %=%* "##g@ ##??? | | ?????## = #### ;##?? | | ?????# ## ##??## #?? | | ?????# ########???## #?? | | ?????## #????????### #?? | | ??????## ##???????## t ##?? | | ???????## ##????????# ##??? | | ????????####?????????# ##??? | | ????????????####?????# ##?? | | ???????????## ####??## #?? | | ??????????## ##??## #?? | | ?????????## ##??### ##?? | | ?????????# ###### #??? | | ?????????# ## #??? | | ?????????## ## ## #??? | | ??????????## ## ## #??? | | ???????????## ## ## #??? | | ????????????## #??? | | ?????????????## #########??? | | ??????????????#######??????????? | | ???????????????????????????????? | | ???????????????????????????????? | | ???????????????????????????????? | | ???????????????????????????????? | | ???????????????????????????????? | +----------------------------------------------------+ Best States ------------- Heat Dissipation 25 Energy Generation 14 Energy Capacity 250 Matter Stores 300 Matter Capacity 300 Sight Range 18 Terrain Scan Density 10 Resistance: KI 20 Resistance: TH 20 Resistance: EX 20 Resistance: EM 20 Resistance: I 20 Resistance: S 20 Resistance: P 20 Evasion (%) 50 Offensive Hacking 10 Item Schematics ----------------- None Robot Schematics ------------------ None Fabricated ------------ Nothing Alien Tech Used ----------------- None Achievements -------------- Quantum Hacking True Hacker Challenges ------------ None Game ------ Seed ReflectiveScrapHumpback Manual? 0 Play Time 00:23:50 Cumulative 16.5 hours Start 2024.04.04 @ 20:06:44 End 2024.04.04 @ 22:11:23 Sessions 1 Manual Loads 0 Difficulty Adventurer Special Mode None Game No. 21 Rogue 0 Adventurer 21 Explorer 0 Win Type - Total 0 Types 0/0/0/0/0/0/0/0/0 Lore% 22 Gallery% 24 Achievement% 16 Wizard Run 0 Options --------- Layout 1 ASCII 0 Keyboard 0 Movement Mouse Keybinds 0 Fullscreen 1 Font 24/Smallcaps Map View 50x35 Zoom Use 0% Tactical HUD 0 Map Filters NONE Filters NONE Steam 0 RUN: 701aff31-2315-4d22-8ef7-d7d6656a1f51